bitfinex-derivatives/quotes_BNBF0:USTF0_20250329
["timestamp","ask_amount","ask_price","bid_price","bid_amount"]
[1743247029927,4.19959286,604.79,604.24,0.89]
[1743247030127,3.26545433,604.78,604.24,0.89]
[1743247030428,3.26545433,604.77,604.24,0.89]
[1743247030621,1.99840154,604.76,604.24,0.89]
[1743247030826,0.93413853,604.76,604.25,0.27130597]
[1743247031429,2.46578634,604.95,604.25,0.27130597]
[1743247031627,3.25512118,604.94,604.25,0.27130597]
[1743247031830,1.99188496,604.93,604.25,0.27130597]
[1743247032029,0.78933484,604.92,604.25,0.27130597]
[1743247032229,0.92144849,604.92,604.25,0.27130597]
[1743247032923,2.46597143,605.15,604.25,0.27130597]
[1743247033129,3.25528131,605.14,604.25,0.27130597]
[1743247033336,4.17655035,605.13,604.25,0.27130597]
[1743247033638,3.25528131,605.12,604.25,0.27130597]
[1743247033831,3.25528131,605.11,604.25,0.27130597]
[1743247034035,3.25528131,605.1,604.25,0.27130597]
[1743247034228,3.25528131,605.09,604.25,0.27130597]
[1743247034434,3.25528131,605.08,604.25,0.27130597]
[1743247034731,4.17655035,605.07,604.25,0.27130597]
[1743247034930,3.25550008,605.06,604.25,0.27130597]
[1743247035136,3.25550008,605.05,604.25,0.27130597]
[1743247035333,4.17676912,605.04,604.25,0.27130597]
[1743247035532,3.25550008,605.03,604.25,0.27130597]
[1743247035732,3.25550008,605.02,604.25,0.27130597]
[1743247035937,3.25543734,605.01,604.25,0.27130597]
[1743247036138,3.25543734,605.0,604.25,0.27130597]
[1743247036335,4.17670638,604.99,604.25,0.27130597]
[1743247036534,3.25543734,604.98,604.25,0.27130597]
[1743247036738,3.25543734,604.97,604.26,0.27124263]
[1743247036936,3.25543734,604.96,604.25,0.27124263]
[1743247037137,3.25543734,604.95,604.26,0.27124263]
[1743247037332,3.25543734,604.94,604.26,0.27124263]
[1743247037534,3.25543734,604.93,604.25,0.27124263]
[1743247037736,2.052586,604.92,604.26,0.27124263]
[1743247038040,2.052586,604.92,604.24,0.89]
[1743247038041,3.25495816,604.91,604.27,0.27124263]
[1743247038235,4.1762272,604.9,604.25,0.27124263]
[1743247038433,1.99185244,604.89,604.28,0.27124263]
[1743247038633,0.92126904,604.9,604.24,0.89]
[1743247038634,1.99185244,604.88,604.29,0.27126579]
[1743247038834,0.78948028,604.87,604.25,0.27126579]
[1743247039034,0.92126904,604.88,604.25,0.27126579]
[1743247039240,0.78932086,604.87,604.3,0.27126579]
[1743247039540,0.97014094,605.13,604.25,0.27126579]
[1743247039741,5.14658197,605.12,604.26,0.27126579]
[1743247039942,3.25488305,605.11,604.25,0.27126579]
[1743247040143,3.25488305,605.1,604.26,0.27126579]
[1743247040437,3.25488305,605.09,604.27,0.27126579]
[1743247040640,3.25488305,605.08,604.28,0.27126579]
[1743247040834,3.25488305,605.08,604.24,0.89]
[1743247040835,3.2556592,605.07,604.29,0.27126579]
[1743247041041,3.2556592,605.06,604.25,0.27126579]
[1743247041237,3.2556592,605.05,604.26,0.27126579]
[1743247041440,3.2556592,605.04,604.25,0.27126579]
[1743247041635,3.2556592,605.04,604.24,0.89]
[1743247041636,3.2556592,605.03,604.26,0.27126579]
[1743247041839,3.2556592,605.02,604.27,0.27126579]
[1743247042043,3.2556592,605.01,604.25,0.27126579]
[1743247042239,3.2556592,605.0,604.26,0.27126579]
[1743247042441,3.2556592,604.99,604.25,0.27126579]
[1743247042643,3.2556592,604.98,604.25,0.27126579]
[1743247042843,4.17721718,604.97,604.25,0.27126579]
[1743247043037,3.2556592,604.96,604.25,0.27126579]
[1743247043243,3.2556592,604.95,604.25,0.27126579]
[1743247043439,3.2556592,604.94,604.25,0.27126579]
[1743247043644,1.99224479,604.93,604.24,0.89]
[1743247043839,1.99224479,604.92,604.25,0.27124209]
[1743247044045,1.99224479,604.91,604.25,0.27124209]
[1743247044243,1.71119198,604.9,604.25,0.27124209]
[1743247044444,0.79016285,604.89,604.25,0.27124209]
[1743247044741,1.71172083,604.88,604.25,0.27124209]
[1743247044945,0.79026115,604.87,604.25,0.27124209]
[1743247045145,0.79026115,604.86,604.25,0.27124209]
[1743247045345,1.26441784,605.13,604.25,0.27124209]
[1743247045545,3.259037,605.12,604.24,0.89]
[1743247045843,3.259037,605.11,604.25,0.27124502]
[1743247046046,3.259037,605.1,604.25,0.27124502]
[1743247046339,4.18159232,605.09,604.25,0.27124502]
[1743247046545,3.259037,605.08,604.25,0.27124502]
[1743247046743,3.259037,605.07,604.25,0.27124502]
[1743247046945,3.25999497,605.06,604.25,0.27124502]
[1743247047246,3.25999497,605.05,604.25,0.27124502]
[1743247047445,4.18255029,605.04,604.24,0.89]
[1743247047643,3.25999497,605.03,604.24,0.89]
[1743247047837,3.25999497,605.02,604.25,0.27129172]
[1743247048043,4.18255029,605.01,604.25,0.27129172]
[1743247048242,3.25999497,605.0,604.24,0.89]
[1743247048546,3.25999497,604.99,604.24,0.89]
[1743247048745,3.25999497,604.98,604.24,0.89]
[1743247049046,3.25999497,604.97,604.24,0.89]
[1743247049344,3.25999497,604.96,604.24,0.89]
[1743247049644,3.25999497,604.95,604.25,0.27132397]
[1743247049841,4.23162369,604.94,604.25,0.27132397]
[1743247050045,3.25999497,604.93,604.25,0.27132397]
[1743247050245,3.25999497,604.92,604.25,0.27132397]
[1743247050439,3.25999497,604.91,604.25,0.27132397]
[1743247050645,3.25999497,604.9,604.25,0.27132397]
[1743247050847,3.25999497,604.89,604.24,0.89]
[1743247051043,3.25999497,604.88,604.24,0.89]
[1743247051242,3.25999497,604.87,604.24,0.89]
[1743247051441,3.25999497,604.86,604.24,0.89]
[1743247051646,4.18255029,604.85,604.24,0.89]
[1743247051848,3.25999497,604.84,604.25,0.27135139]
[1743247052041,3.25999497,604.83,604.25,0.27135139]
[1743247052346,0.92255532,604.85,604.25,0.27135139]
[1743247052347,3.25999497,604.82,604.25,0.27135139]
[1743247052546,3.25999497,604.81,604.25,0.27135139]
[1743247052748,3.26378283,604.8,604.25,0.27135139]
[1743247052949,3.26378283,604.79,604.24,0.89]
[1743247053147,3.26378283,604.78,604.24,0.89]
[1743247053447,4.18633815,604.77,604.24,0.89]
[1743247053647,3.26378283,604.76,604.24,0.89]
[1743247053843,3.26378283,604.75,604.24,0.89]
[1743247054042,3.26378283,604.74,604.24,0.89]
[1743247054250,1.9973736,604.73,604.24,0.89]
[1743247054448,1.9973736,604.72,604.24,0.89]
[1743247054749,2.91992892,604.71,604.24,0.89]
[1743247054948,1.9973736,604.7,604.24,0.89]
[1743247055249,2.91992892,604.69,604.24,0.89]
[1743247055546,2.92083247,604.68,604.24,0.89]
[1743247055746,0.79150577,604.67,604.24,0.89]
[1743247055946,0.79209249,604.66,604.24,0.89]
[1743247056147,0.92255532,604.67,604.24,0.89]
[1743247056448,6.65808343,606.19,604.24,0.89]
[1743247056449,1.71460074,604.66,604.25,1.069]
[1743247056748,5.84087889,606.18,604.25,1.069]
[1743247056749,6.65808343,606.17,604.25,1.069]
[1743247056950,0.97361775,605.09,604.25,1.069]
[1743247057149,0.97361775,605.07,604.26,0.27129345]
[1743247057445,3.26718175,605.06,604.26,0.27129345]
[1743247057645,3.26718175,605.05,604.26,0.27129345]
[1743247057850,3.26718175,605.04,604.25,1.069]
[1743247058146,3.26718175,605.03,604.26,0.27126229]
[1743247058350,3.26718175,605.02,604.26,0.27126229]
[1743247058547,3.26718175,605.01,604.26,0.27126229]
[1743247058854,4.19390879,605.0,604.26,0.27126229]
[1743247059046,3.26891807,604.99,604.26,0.27126229]
[1743247059247,3.26891807,604.98,604.26,0.27126229]
[1743247059452,3.26891807,604.97,604.27,0.27128965]
[1743247059646,3.26891807,604.96,604.28,0.27128965]
[1743247059852,3.26891807,604.95,604.29,0.27128965]
[1743247060046,3.26891807,604.94,604.3,0.27128965]
[1743247060250,3.26891807,604.93,604.26,0.27128965]
[1743247060455,3.26891807,604.92,604.27,0.27128965]
[1743247060747,3.26891807,604.92,604.25,1.069]
[1743247060748,3.26891807,604.91,604.28,0.27128965]
[1743247060951,3.26891807,604.9,604.26,0.27128965]
[1743247061149,3.26891807,604.89,604.29,0.27128965]
[1743247061347,3.26891807,604.88,604.25,1.069]
[1743247061550,3.26891807,604.87,604.26,0.27129746]
[1743247061847,3.26891807,604.86,604.26,0.27129746]
[1743247062046,3.26891807,604.85,604.26,0.27129746]
[1743247062247,3.26891807,604.84,604.26,0.27129746]
[1743247062448,4.19521825,604.83,604.26,0.27129746]
[1743247062650,3.26891807,604.82,604.25,1.069]
[1743247062854,3.27297805,604.81,604.26,0.27130162]
[1743247063056,4.19927823,604.8,604.26,0.27130162]
[1743247063353,2.00171587,604.79,604.27,1.318]
[1743247063550,2.92801605,604.78,604.27,1.318]
[1743247063755,2.00171587,604.77,604.27,1.318]
[1743247063953,2.00171587,604.76,604.27,1.318]
[1743247064151,2.00171587,604.75,604.27,1.318]
[1743247064350,2.00171587,604.74,604.27,1.318]
[1743247064551,3.27404734,604.73,604.27,1.318]
[1743247064855,2.00606015,604.72,604.27,1.318]
[1743247065057,2.00606015,604.71,604.27,1.318]
[1743247065252,2.00606015,604.7,604.27,1.318]
[1743247065556,2.93236033,604.69,604.27,1.318]
[1743247065751,2.00606015,604.68,604.27,1.318]
[1743247065952,0.79453886,604.67,604.27,1.318]
[1743247066154,0.92630018,604.67,604.27,1.318]
[1743247066654,0.92630018,604.66,604.27,1.318]
[1743247067055,0.92630018,604.65,604.27,1.318]
[1743247067853,1.27259717,604.9,604.27,1.318]
[1743247068054,3.28071043,604.89,604.27,1.318]
[1743247068258,4.2095734,604.88,604.27,1.318]
[1743247068459,3.28071043,604.87,604.27,1.318]
[1743247068755,3.28183421,604.86,604.27,1.318]
[1743247069059,4.21069718,604.85,604.27,1.318]
[1743247069262,3.28219129,604.84,604.27,1.318]
[1743247069560,3.28219129,604.83,604.27,1.318]
[1743247069755,3.28219129,604.82,604.27,1.318]
[1743247069960,3.28219129,604.81,604.27,1.318]
[1743247070160,4.21105426,604.8,604.27,1.318]
[1743247070359,2.06947866,604.79,604.27,1.318]
[1743247070553,0.92886297,604.8,604.27,1.318]
[1743247070758,0.92886297,604.78,604.27,1.318]
[1743247071160,3.28282522,604.77,604.27,1.318]
[1743247071461,3.28282522,604.76,604.27,1.318]
[1743247071661,3.28282522,604.75,604.27,2.65]
[1743247071854,3.28282522,604.74,604.27,2.65]
[1743247072058,3.28282522,604.73,604.27,2.65]
[1743247072359,3.28282522,604.72,604.27,2.65]
[1743247072560,4.21168819,604.71,604.27,2.65]
[1743247072760,3.28282522,604.7,604.27,2.65]
[1743247072952,3.28282522,604.69,604.27,2.65]
[1743247073155,4.21168819,604.68,604.27,2.65]
[1743247073360,3.28282522,604.67,604.27,2.65]
[1743247073560,3.28282522,604.66,604.27,2.65]
[1743247073760,3.28282522,604.65,604.27,2.65]
[1743247073957,3.28282522,604.64,604.27,2.65]
[1743247074154,3.28282522,604.63,604.27,2.65]
[1743247074358,4.21168819,604.62,604.27,2.65]
[1743247074554,3.28282522,604.61,604.27,2.65]
[1743247074758,3.28347046,604.6,604.27,2.65]
[1743247074958,3.28347046,604.59,604.27,2.65]
[1743247075160,3.28347046,604.58,604.27,2.65]
[1743247075359,3.28347046,604.57,604.27,2.65]
[1743247075561,3.28347046,604.56,604.27,2.65]
[1743247075763,2.00966956,604.55,604.27,2.65]
[1743247076062,2.00966956,604.54,604.27,2.65]
[1743247076259,2.00966956,604.53,604.27,1.332]
[1743247076455,2.14307382,604.52,604.27,1.332]
[1743247076660,2.01121436,604.51,604.27,1.332]
[1743247076861,2.01121436,604.5,604.27,1.332]
[1743247077061,2.01121436,604.49,604.27,1.332]
[1743247077361,2.01147276,604.48,604.27,1.332]
[1743247077561,1.21421085,604.47,604.27,1.332]
[1743247077761,1.21457559,604.46,604.27,1.332]
[1743247077959,0.92886297,604.46,604.27,1.332]
[1743247078556,0.92886297,604.45,604.27,1.332]
[1743247079464,0.92886297,604.44,604.27,1.332]
[1743247080057,0.92886297,604.43,604.27,1.332]
[1743247081061,1.27635606,604.66,604.27,1.332]
[1743247081262,3.28940785,604.65,604.27,1.332]
[1743247081461,3.28940785,604.64,604.27,1.332]
[1743247081662,3.28940785,604.63,604.27,1.332]
[1743247081858,3.28940785,604.62,604.27,1.332]
[1743247082063,3.28940785,604.61,604.27,1.332]
[1743247082264,3.29155175,604.6,604.27,1.332]
[1743247082462,3.29155175,604.59,604.27,1.332]
[1743247082658,3.29155175,604.58,604.27,1.332]
[1743247082958,3.29155175,604.57,604.27,1.332]
[1743247083161,3.29155175,604.56,604.27,1.332]
[1743247083362,3.29155175,604.55,604.27,1.332]
[1743247083561,2.01435508,604.54,604.27,1.332]
[1743247083767,2.01435508,604.53,604.27,1.332]
[1743247083962,2.01435508,604.52,604.27,1.332]
[1743247084162,1.21610716,604.51,604.27,1.332]
[1743247084360,0.93179602,604.52,604.27,1.332]
[1743247085061,0.93179602,604.51,604.27,1.332]
[1743247085769,1.27770127,604.79,604.27,1.332]
[1743247085970,3.29301485,604.78,604.27,1.332]
[1743247086261,3.2930284,604.77,604.27,1.332]
[1743247086461,3.2930284,604.76,604.27,1.332]
[1743247086666,0.93221934,604.78,604.27,1.332]
[1743247086667,3.2930284,604.75,604.27,1.332]
[1743247086867,3.2930284,604.74,604.27,1.332]
[1743247087060,4.22524774,604.73,604.27,1.332]
[1743247087266,3.2930284,604.72,604.27,1.332]
[1743247087568,3.2930284,604.71,604.27,1.332]
[1743247087770,3.2930284,604.7,604.27,1.332]
[1743247088068,3.2930284,604.69,604.27,1.332]
[1743247088368,3.2930284,604.68,604.27,1.332]
[1743247088569,3.2930284,604.67,604.27,1.332]
[1743247088864,2.01528576,604.66,604.27,1.332]
[1743247089070,2.01528576,604.65,604.27,1.332]
[1743247089369,2.01528576,604.64,604.27,1.332]
[1743247089564,1.21669661,604.63,604.27,1.332]
[1743247089763,0.93221934,604.64,604.27,1.332]
[1743247089963,1.21721675,604.63,604.27,1.332]
[1743247090165,2.01624933,604.62,604.27,1.332]
[1743247090465,0.93221934,604.63,604.27,1.332]
[1743247090466,2.01622277,604.61,604.27,1.332]
[1743247090671,1.21728284,604.6,604.27,1.332]
[1743247090871,1.21728284,604.59,604.27,1.332]
[1743247091073,2.14943444,604.58,604.27,1.332]
[1743247091269,1.21713861,604.57,604.27,1.332]
[1743247091470,2.01600953,604.56,604.27,1.332]
[1743247091670,2.01600953,604.55,604.27,1.332]
[1743247091865,2.01600953,604.54,604.27,1.332]
[1743247092172,1.21713861,604.53,604.27,1.332]
[1743247092472,1.21713861,604.52,604.27,1.332]
[1743247092668,0.93221934,604.51,604.27,1.332]
[1743247093066,0.93221934,604.5,604.27,1.332]
[1743247093969,0.93221934,604.49,604.27,1.332]
[1743247094572,1.27849275,604.78,604.27,1.332]
[1743247094773,3.295369,604.77,604.27,1.332]
[1743247094973,3.295369,604.76,604.27,1.332]
[1743247095173,4.22829401,604.75,604.27,1.332]
[1743247095373,3.295369,604.74,604.27,1.332]
[1743247095573,2.01687625,604.73,604.27,1.332]
[1743247095772,2.01687625,604.72,604.27,1.332]
[1743247095972,2.94980126,604.71,604.27,1.332]
[1743247096274,2.01710744,604.7,604.27,1.332]
[1743247096574,2.95003245,604.69,604.27,1.332]
[1743247096876,2.01710744,604.68,604.27,1.332]
[1743247097076,2.01710744,604.67,604.27,1.332]
[1743247097275,2.15079621,604.66,604.27,1.332]
[1743247097476,0.93292501,604.66,604.27,1.332]
[1743247098076,0.93292501,604.65,604.27,1.332]
[1743247098278,0.93292501,604.65,604.28,0.2712766]
[1743247098676,0.98237067,604.99,604.28,0.2712766]
[1743247098871,3.29691457,604.98,604.28,0.2712766]
[1743247099077,4.23016299,604.97,604.14,0.2712766]
[1743247099278,3.29691457,604.96,604.14,0.2712766]
[1743247099469,3.29691457,604.95,604.15,0.2712766]
[1743247099676,4.23016299,604.94,604.14,0.2712766]
[1743247099876,3.29691457,604.93,604.15,0.2712766]
[1743247100179,0.93324842,604.94,604.13,1.4748281]
[1743247100180,3.29691457,604.92,604.13,1.4748281]
[1743247100476,3.29691457,604.91,604.14,0.2712473]
[1743247100677,3.29691457,604.9,604.14,0.2712473]
[1743247100869,3.29691457,604.89,604.14,0.2712473]
[1743247101073,3.29691457,604.88,604.2,1.23078804]
[1743247101275,3.29691457,604.87,604.21,0.2712473]
[1743247101474,3.29691457,604.86,604.21,0.2712473]
[1743247101678,2.01766392,604.85,604.21,0.2712473]
[1743247101874,2.01766392,604.84,604.21,0.2712473]
[1743247102078,2.01772109,604.83,604.21,0.2712473]
[1743247102380,2.95096951,604.82,604.21,0.2712473]
[1743247102577,2.01772109,604.81,604.22,1.142]
[1743247102782,2.01772109,604.8,604.23,0.2712473]
[1743247102976,2.01772109,604.79,604.23,0.2712473]
[1743247103179,2.01772022,604.78,604.23,0.2712473]
[1743247103478,2.15142147,604.77,604.23,0.2712473]
[1743247103677,0.93324842,604.77,604.23,0.2712473]
[1743247103881,0.93324842,604.76,604.23,0.2712473]
[1743247104277,1.21819712,604.75,604.23,0.2712473]
[1743247104475,0.93324842,604.75,604.22,1.142]
[1743247104877,0.93324842,604.74,604.22,1.142]
[1743247105479,0.93324842,604.73,604.22,1.142]
[1743247106183,0.93324842,604.72,604.22,1.142]
[1743247106883,0.93324842,604.71,604.22,1.142]
[1743247107478,1.27873935,605.03,604.22,1.142]
[1743247107684,3.29508608,605.02,604.22,1.142]
[1743247107978,3.29508608,605.01,604.22,1.142]
[1743247108183,3.29508608,605.0,604.22,1.142]
[1743247108383,4.22767947,604.99,604.22,1.142]
[1743247108577,3.29508608,604.98,604.22,1.142]
[1743247108781,3.29508608,604.97,604.22,1.142]
[1743247108986,4.22767947,604.96,604.22,1.142]
[1743247109187,3.29508608,604.95,604.22,1.142]
[1743247109482,2.94894012,604.94,604.22,1.142]
[1743247109685,2.01634673,604.93,604.22,1.142]
[1743247109984,2.01606263,604.92,604.22,1.142]
[1743247110180,2.94865602,604.91,604.22,1.142]
[1743247110385,2.01606263,604.9,604.22,1.142]
[1743247110589,2.94865602,604.89,604.22,1.142]
[1743247110786,2.01606263,604.88,604.22,1.142]
[1743247110986,2.94865602,604.87,604.22,1.142]
[1743247111187,1.21717609,604.86,604.22,1.142]
[1743247111487,1.21717609,604.85,604.22,1.142]
[1743247111781,0.93259339,604.87,604.22,1.142]
[1743247111987,0.93259339,604.84,604.22,1.142]
[1743247112487,0.93259339,604.83,604.22,1.142]
[1743247112787,2.79929788,606.56,604.22,1.142]
[1743247112788,0.93259339,604.82,604.22,1.142]
[1743247113382,0.93259339,604.81,604.22,1.142]
[1743247114188,0.93259339,604.8,604.22,1.142]
[1743247114690,1.21581792,604.79,604.23,0.271231]
[1743247114890,1.21581792,604.78,604.23,0.271231]
[1743247115086,2.01380173,604.77,604.22,1.142]
[1743247115289,2.01380173,604.76,604.22,1.142]
[1743247115488,2.01380173,604.75,604.22,1.142]
[1743247115693,2.01380173,604.74,604.22,1.142]
[1743247115892,1.21562998,604.73,604.22,1.142]
[1743247116087,6.71485111,607.06,604.22,1.142]
[1743247116088,1.21562998,604.72,604.23,0.27127955]
[1743247116288,0.93259339,604.74,604.23,1.60627955]
[1743247116495,2.01353175,604.73,604.24,0.27127955]
[1743247116695,1.2156364,604.72,604.24,0.27127955]
[1743247116995,1.21562685,604.71,604.24,0.27127955]
[1743247117190,0.93259339,604.73,604.24,0.27127955]
[1743247117389,2.14819579,604.72,604.24,0.27127955]
[1743247117595,2.01349816,604.71,604.24,0.27127955]
[1743247117794,0.79789576,604.7,604.24,0.27127955]
[1743247117997,1.21562839,604.69,604.24,0.27127955]
[1743247118198,0.93259339,604.7,604.24,0.27127955]
[1743247118199,1.21562839,604.68,604.24,0.27127955]
[1743247118399,1.21562839,604.67,604.24,0.27127955]
[1743247118699,0.93259339,604.68,604.24,0.27127955]
[1743247118898,0.93259339,604.66,604.24,0.27127955]
[1743247119297,0.93259339,604.65,604.24,0.27127955]
[1743247119892,0.93259339,604.65,604.25,1.259]
[1743247120098,0.93259339,604.64,604.25,1.259]
[1743247120299,0.93259339,604.64,604.26,0.27129441]
[1743247120502,1.27664232,604.93,604.26,0.27129441]
[1743247120701,3.29025745,604.92,604.26,0.27129441]
[1743247120899,3.29025745,604.91,604.26,0.27129441]
[1743247121095,3.29025745,604.9,604.26,0.27129441]
[1743247121300,3.29025745,604.89,604.26,0.27129441]
[1743247121500,3.29025745,604.88,604.26,0.27129441]
[1743247121700,3.29025745,604.87,604.26,0.27129441]
[1743247121895,3.29025745,604.86,604.26,0.27129441]
[1743247122098,3.29025745,604.85,604.26,0.27129441]
[1743247122299,3.29025745,604.84,604.25,1.259]
[1743247122598,3.29025745,604.83,604.25,1.259]
[1743247122804,3.29025745,604.82,604.25,1.259]
[1743247123000,3.29025745,604.81,604.25,1.259]
[1743247123193,4.22164999,604.8,604.25,1.259]
[1743247123394,3.29025745,604.79,604.25,1.259]
[1743247123600,3.29025745,604.78,604.25,1.259]
[1743247123801,3.29025745,604.77,604.25,1.259]
[1743247123997,3.29025745,604.76,604.25,1.259]
[1743247124204,3.29025745,604.75,604.25,1.259]
[1743247124401,4.22164999,604.74,604.25,1.259]
[1743247124603,3.29025745,604.73,604.25,1.259]
[1743247124905,0.93139254,604.74,604.25,1.259]
[1743247124906,2.01361513,604.72,604.25,1.259]
[1743247125098,2.01361513,604.71,604.26,0.27132287]
[1743247125297,2.01361513,604.7,604.26,0.27132287]
[1743247125501,2.94500767,604.69,604.26,0.27132287]
[1743247125700,2.01361513,604.68,604.26,0.27132287]
[1743247125904,2.01361513,604.67,604.26,0.27132287]
[1743247126203,2.01361513,604.66,604.26,0.27132287]
[1743247126506,3.28991677,604.65,604.25,1.259]
[1743247126700,3.28991677,604.64,604.25,1.259]
[1743247126905,3.28991677,604.63,604.25,1.259]
[1743247127199,4.22111727,604.62,604.25,1.259]
[1743247127404,3.28972473,604.61,604.25,1.259]
[1743247127605,2.01361513,604.6,604.25,1.259]
[1743247127805,2.01361513,604.59,604.25,1.259]
[1743247127999,2.01361513,604.58,604.25,1.259]
[1743247128207,0.79793133,604.57,604.25,1.259]
[1743247128404,2.01293699,604.56,604.25,1.259]
[1743247128606,2.01293699,604.55,604.25,1.259]
[1743247128806,1.21500566,604.54,604.25,1.259]
[1743247129006,1.21500566,604.53,604.25,1.259]
[1743247129205,0.93139254,604.56,604.25,1.259]
[1743247129400,0.93139254,604.54,604.25,1.259]
[1743247129600,1.21486764,604.53,604.25,1.259]
[1743247129801,1.21486764,604.52,604.25,1.259]
[1743247130004,0.93139254,604.53,604.25,1.259]
[1743247130705,0.93139254,604.52,604.25,1.259]
[1743247131503,0.93139254,604.51,604.25,1.259]
[1743247132103,0.93139254,604.5,604.25,1.259]
[1743247132709,1.27573025,604.72,604.25,1.259]
[1743247132908,3.28774483,604.71,604.25,1.259]
[1743247133105,3.28774483,604.7,604.25,1.259]
[1743247133309,3.28774483,604.69,604.25,1.259]
[1743247133511,3.28774483,604.68,604.25,1.259]
[1743247133711,3.28774483,604.67,604.25,1.259]
[1743247133913,0.9805214,604.84,604.25,1.259]
[1743247133914,4.2181487,604.66,604.25,1.259]
[1743247134110,4.2181487,604.65,604.25,1.259]
[1743247134308,3.28774483,604.64,604.25,1.259]
[1743247134510,3.28774483,604.63,604.25,1.259]
[1743247134710,4.21796567,604.62,604.25,1.259]
[1743247134909,2.01195589,604.61,604.25,1.259]
[1743247135110,2.01195589,604.6,604.25,1.259]
[1743247135310,2.94235976,604.59,604.25,1.259]
[1743247135511,2.01195589,604.58,604.25,1.259]
[1743247135707,2.0122481,604.57,604.25,1.259]
[1743247135909,2.94265197,604.56,604.25,1.259]
[1743247136215,2.0122481,604.55,604.25,1.259]
[1743247136410,2.0122481,604.54,604.25,1.259]
[1743247136612,2.0122481,604.53,604.25,1.259]
[1743247136816,1.21484278,604.52,604.25,1.259]
[1743247137012,0.93040387,604.54,604.25,1.259]
[1743247137215,2.01269036,604.53,604.25,1.259]
[1743247137416,2.01269036,604.52,604.25,1.259]
[1743247137617,3.28851899,604.51,604.25,1.259]
[1743247137913,4.21892286,604.5,604.25,1.259]
[1743247138118,3.28851899,604.49,604.25,1.259]
[1743247138317,3.28851899,604.48,604.25,1.259]
[1743247138619,3.28851899,604.47,604.26,1.228]
[1743247138819,3.28851899,604.46,604.26,1.228]
[1743247139020,3.28851899,604.45,604.26,1.228]
[1743247139219,3.28851899,604.44,604.26,1.228]
[1743247139521,3.28851899,604.43,604.26,1.228]
[1743247139714,3.28851899,604.42,604.26,1.228]
[1743247139916,3.28851899,604.41,604.26,1.228]
[1743247140115,3.28851899,604.4,604.26,1.228]
[1743247140323,3.28851899,604.39,604.26,1.228]
[1743247140616,3.28851899,604.38,604.26,1.228]
[1743247140816,4.21892286,604.37,604.26,1.228]
[1743247141117,3.28851899,604.36,604.26,1.228]
[1743247141321,3.28851899,604.35,604.26,1.228]
[1743247141619,3.28851899,604.34,604.26,1.228]
[1743247141816,3.28851899,604.33,604.26,1.228]
[1743247142020,3.28851899,604.32,604.26,1.228]
[1743247142220,3.28851899,604.31,604.26,1.228]
[1743247142421,0.93040387,604.33,604.26,1.228]
[1743247142422,3.28851899,604.3,604.26,1.228]
[1743247142615,2.01269036,604.29,604.26,1.228]
[1743247142815,2.01269036,604.28,604.26,1.228]
[1743247143018,2.01269036,604.27,604.26,1.228]
[1743247143216,2.94309423,604.27,604.26,1.228]
[1743247143620,0.93040387,604.27,604.26,1.228]
[1743247143817,2.14154632,604.27,604.26,1.228]
[1743247144019,0.93040387,604.27,604.26,1.228]
[1743247144622,1.27197214,604.5,604.26,1.228]
[1743247144823,3.27766781,604.49,604.26,1.228]
[1743247145119,4.20552863,604.48,604.26,1.228]
[1743247145321,3.27766781,604.47,604.26,1.228]
[1743247145516,4.20552863,604.46,604.26,1.228]
[1743247145719,3.27766781,604.45,604.26,1.228]
[1743247145920,3.27766781,604.44,604.26,1.228]
[1743247146121,4.20552863,604.43,604.26,1.228]
[1743247146322,3.27766781,604.42,604.26,1.228]
[1743247146522,2.00569567,604.41,604.26,1.228]
[1743247146717,2.00569567,604.4,604.26,1.228]
[1743247146919,2.00539836,604.39,604.26,1.228]
[1743247147127,0.92786082,604.41,604.26,1.228]
[1743247147322,2.00489898,604.4,604.26,1.228]
[1743247147522,2.00468599,604.39,604.26,1.228]
[1743247147723,0.92786082,604.4,604.26,1.228]
[1743247147925,2.93253678,604.39,604.26,1.228]
[1743247148126,0.92786082,604.39,604.26,1.228]